bitfinex/quotes_BTCUSD_20250508
["timestamp","ask_amount","ask_price","bid_price","bid_amount"]
[1746742682437,0.03627583,102880.0,102870.0,0.89718374]
[1746742682665,0.03627555,102880.0,102870.0,0.89718374]
[1746742682896,0.05571472,102880.0,102870.0,0.57333993]
[1746742683118,0.02655625,102880.0,102870.0,0.57333993]
[1746742683342,0.01943756,102890.0,102880.0,0.22356028]
[1746742683562,0.03887569,102890.0,102880.0,0.5272972]
[1746742684157,0.22353893,102890.0,102880.0,0.5175778]
[1746742684363,0.02915658,102890.0,102880.0,0.52729729]
[1746742684544,0.02915658,102890.0,102880.0,0.53701669]
[1746742684742,0.23325804,102890.0,102880.0,0.5175778]
[1746742684927,0.01943756,102890.0,102880.0,0.52729729]
[1746742685138,0.03887475,102890.0,102880.0,0.53701669]
[1746742685345,0.04859386,102890.0,102880.0,0.53701669]
[1746742686151,0.03887465,102890.0,102880.0,0.53701669]
[1746742686378,0.04859367,102890.0,102880.0,0.23327977]
[1746742686624,0.03887465,102890.0,102880.0,0.53701669]
[1746742687231,0.88541569,102920.0,102880.0,0.54673599]
[1746742687232,0.32810044,102920.0,102880.0,0.54673599]
[1746742687440,0.01943765,102890.0,102880.0,0.25849832]
[1746742687860,0.01943577,102900.0,102890.0,0.22353874]
[1746742688056,0.12010222,102900.0,102890.0,0.24875729]
[1746742688259,0.12010222,102900.0,102890.0,0.26475729]
[1746742688485,0.13953837,102900.0,102890.0,0.2611155]
[1746742688703,0.33390182,102900.0,102890.0,0.25139695]
[1746742688874,0.33390182,102900.0,102890.0,0.56485251]
[1746742689080,0.33390182,102900.0,102890.0,0.51391504]
[1746742689281,0.31646652,102900.0,102890.0,0.00607666]
[1746742689518,0.31646652,102900.0,102890.0,0.30373692]
[1746742689731,0.00971892,102890.0,102880.0,0.86729786]
[1746742689933,0.21381982,102890.0,102880.0,0.7977603]
[1746742690351,0.0291563,102890.0,102880.0,0.8074797]
[1746742690558,0.01943738,102890.0,102880.0,0.8074797]
[1746742690768,0.0291563,102890.0,102880.0,0.8229797]
[1746742691525,0.23325776,102890.0,102880.0,0.8132603]
[1746742691736,0.0291563,102890.0,102880.0,0.8229797]
[1746742692155,0.0291563,102890.0,102880.0,0.8132603]
[1746742692361,0.21382029,102890.0,102880.0,0.56447978]
[1746742692970,0.21382029,102890.0,102880.0,0.77832104]
[1746742693730,0.01943794,102890.0,102880.0,0.80747989]
[1746742694150,0.01943756,102890.0,102880.0,0.80747989]
[1746742694591,0.01943756,102890.0,102880.0,0.82397989]
[1746742695087,0.02915658,102890.0,102880.0,0.82397989]
[1746742695317,0.02915592,102890.0,102880.0,0.81426049]
[1746742695542,0.2235394,102890.0,102880.0,0.55090124]
[1746742695763,0.2235394,102890.0,102880.0,0.77832104]
[1746742695983,0.01943756,102890.0,102880.0,0.81375964]
[1746742696399,0.03887569,102890.0,102880.0,0.82347951]
[1746742696598,0.03887569,102890.0,102880.0,0.81376011]
[1746742696898,0.2235394,102890.0,102880.0,0.75888102]
[1746742697100,0.21382048,102890.0,102880.0,0.76860098]
[1746742697300,0.21382048,102890.0,102880.0,0.78804024]
[1746742697547,0.01943813,102890.0,102880.0,0.79775964]
[1746742697964,0.21382048,102890.0,102880.0,0.77832066]
[1746742698135,0.21382048,102890.0,102880.0,0.78804024]
[1746742698657,0.21382048,102890.0,102880.0,0.80747913]
[1746742698863,0.01943775,102890.0,102880.0,0.80747913]
[1746742699071,0.21375758,102920.0,102910.0,0.21377855]
[1746742699231,0.3144245,102920.0,102910.0,0.22447978]
[1746742699429,0.20407108,102910.0,102900.0,0.56447978]
[1746742699636,0.304738,102910.0,102900.0,0.56447978]
[1746742699849,0.19432568,102920.0,102910.0,0.2040616]
[1746742700062,0.2949926,102920.0,102910.0,0.42854148]
[1746742700275,0.29813641,102920.0,102910.0,0.42854148]
[1746742700688,0.29513641,102920.0,102910.0,0.44797508]
[1746742700890,0.29513641,102920.0,102910.0,0.42854148]
[1746742701094,0.29513641,102920.0,102910.0,0.43825851]
[1746742701348,0.29513641,102920.0,102910.0,0.44797545]
[1746742701742,0.29513641,102920.0,102910.0,0.42854148]
[1746742701960,0.12024263,102920.0,102910.0,0.49526713]
[1746742702419,0.00014381,102920.0,102910.0,0.84498388]
[1746742702671,0.01957495,102920.0,102910.0,0.84498388]
[1746742702897,0.00985924,102920.0,102910.0,0.84498388]
[1746742703348,0.00014381,102920.0,102910.0,0.84498388]
[1746742703570,0.00014381,102920.0,102910.0,0.92234388]
[1746742705640,0.00014381,102920.0,102910.0,1.03755165]
[1746742706370,0.00014381,102920.0,102910.0,0.71240495]
[1746742706588,0.00014381,102920.0,102910.0,0.93688473]
[1746742707762,0.00014381,102920.0,102910.0,1.02640488]
[1746742708231,0.00014381,102920.0,102910.0,1.42640488]
[1746742708451,0.00014381,102920.0,102910.0,1.41186403]
[1746742708674,0.02929133,102920.0,102910.0,1.41186403]
[1746742708902,0.01957524,102920.0,102910.0,1.01186403]
[1746742709168,0.22361701,102920.0,102910.0,0.29965715]
[1746742709401,0.22361758,102920.0,102910.0,0.32007523]
[1746742709617,0.21390177,102920.0,102910.0,0.52413702]
[1746742709840,0.00014381,102920.0,102910.0,0.91961188]
[1746742710309,0.00014381,102920.0,102910.0,0.92568718]
[1746742710728,0.00014381,102920.0,102910.0,1.26537473]
[1746742711173,0.00014381,102920.0,102910.0,1.04089495]
[1746742712070,0.00014381,102920.0,102910.0,0.9513748]
[1746742713436,0.00196001,102930.0,102920.0,0.61001424]
[1746742713655,0.00196001,102930.0,102920.0,1.71960847]
[1746742714521,0.22541141,102930.0,102920.0,0.99841717]
[1746742714737,0.22741141,102930.0,102920.0,1.29732428]
[1746742714938,0.02438945,102930.0,102920.0,1.31292428]
[1746742715153,0.0437307,102930.0,102920.0,1.31292428]
[1746742715366,0.00487144,102930.0,102920.0,1.31292428]
[1746742715594,0.0243007,102930.0,102920.0,1.32932428]
[1746742715845,0.03301566,102930.0,102920.0,1.32932428]
[1746742716094,0.22732247,102930.0,102920.0,0.96641717]
[1746742716322,0.22732247,102930.0,102920.0,0.0060753]
[1746742716323,0.33397537,102930.0,102920.0,0.0060753]
[1746742716546,0.19432568,102920.0,102910.0,0.77825812]
[1746742716778,0.20404177,102920.0,102910.0,0.20406149]
[1746742717007,0.00187144,102930.0,102920.0,0.25407329]
[1746742717223,0.00187144,102930.0,102920.0,0.81855307]
[1746742717454,0.00187144,102930.0,102920.0,0.88297837]
[1746742717677,0.00187144,102930.0,102920.0,0.82462837]
[1746742718132,0.00187144,102930.0,102920.0,1.04910815]
[1746742718338,0.002,102950.0,102940.0,0.0317]
[1746742718553,0.002,102950.0,102940.0,0.65088116]
[1746742718755,0.03113865,102950.0,102940.0,0.47960975]
[1746742718975,0.02142529,102950.0,102940.0,0.56296505]
[1746742719189,0.002,102950.0,102940.0,0.56296505]
[1746742719625,0.00247926,102950.0,102940.0,0.60195346]
[1746742719829,0.10314618,102950.0,102940.0,0.04706371]
[1746742720045,0.21617456,102950.0,102940.0,0.28125788]
[1746742720275,0.03161885,102950.0,102940.0,0.48889882]
[1746742720471,0.0316181,102950.0,102940.0,0.50832656]
[1746742720707,0.00247926,102950.0,102940.0,0.54162656]
[1746742720906,0.00247926,102950.0,102940.0,0.54062656]
[1746742721118,0.00347926,102950.0,102940.0,0.54670186]
[1746742721315,0.00347926,102950.0,102940.0,0.54470186]
[1746742721518,0.01219195,102950.0,102940.0,0.61586656]
[1746742721762,0.01319186,102950.0,102940.0,0.61586656]
[1746742721982,0.00347926,102950.0,102940.0,0.61586656]
[1746742723270,0.00347926,102950.0,102940.0,0.97040741]
[1746742725683,0.00347926,102950.0,102940.0,1.37040741]
[1746742728628,0.00347926,102950.0,102940.0,1.37036741]
[1746742728863,0.00347926,102950.0,102940.0,1.37643986]
[1746742729469,0.00347926,102950.0,102940.0,1.37036741]
[1746742730510,0.23660098,102950.0,102940.0,1.32352675]
[1746742730710,0.02290503,102950.0,102940.0,1.32352609]
[1746742730957,0.01319205,102950.0,102940.0,1.32352609]
[1746742731165,0.02290503,102950.0,102940.0,0.92352609]
[1746742731348,0.00347926,102950.0,102940.0,0.93872609]
[1746742731587,0.00347926,102950.0,102940.0,0.95482609]
[1746742731815,0.00347926,102950.0,102940.0,0.96936694]
[1746742732868,0.00347926,102950.0,102940.0,1.37543927]
[1746742734329,0.00347926,102950.0,102940.0,0.97543927]
[1746742734954,0.00347926,102950.0,102940.0,0.97539927]
[1746742737420,0.00347926,102950.0,102940.0,0.92909452]
[1746742737641,0.00206,102970.0,102960.0,0.59438657]
[1746742737857,0.00206,102970.0,102960.0,1.04941846]
[1746742737858,0.00220372,102970.0,102960.0,1.04941846]
[1746742739432,0.00220372,102970.0,102960.0,1.06395931]
[1746742740741,0.002,102990.0,102980.0,0.60938403]
[1746742740982,0.0214104,103030.0,103020.0,0.02911941]
[1746742741202,0.01170515,103030.0,103020.0,0.60106214]
[1746742741426,0.00629171,103030.0,103020.0,0.83161425]
[1746742741654,0.00629171,103030.0,103020.0,1.0558041]
[1746742741870,0.00629171,103030.0,103020.0,0.60684454]
[1746742742090,0.00629171,103030.0,103020.0,0.86912999]
[1746742742312,0.00629171,103030.0,103020.0,0.65142977]
[1746742742538,0.00629171,103030.0,103020.0,0.6136241]
[1746742742763,0.02570286,103030.0,103020.0,0.36026763]
[1746742742979,0.00629171,103030.0,103020.0,0.80800388]
[1746742743201,0.00629171,103030.0,103020.0,0.59224454]
[1746742743420,0.00729171,103030.0,103020.0,0.47672432]
[1746742743654,0.00729171,103030.0,103020.0,0.3081198]
[1746742743899,0.00620317,103030.0,103020.0,0.53259958]
[1746742744124,0.00620317,103030.0,103020.0,0.53459958]
[1746742744336,0.00620317,103030.0,103020.0,0.53559958]
[1746742744569,0.00620317,103030.0,103020.0,0.79788503]
[1746742745034,0.00620317,103030.0,103020.0,1.3293928]
[1746742745264,0.00205518,103030.0,103020.0,2.1916888]
[1746742745696,0.00205518,103030.0,103020.0,2.19845263]
[1746742745965,0.00191148,103050.0,103040.0,0.59611313]
[1746742746205,0.00191148,103050.0,103040.0,0.89406568]
[1746742746206,0.00666175,103050.0,103040.0,0.89406568]
[1746742746436,0.00666175,103050.0,103040.0,0.90013801]
[1746742746884,0.00666175,103050.0,103040.0,0.94873617]
[1746742747115,0.00766175,103050.0,103040.0,1.34242939]
[1746742747338,0.04483133,103080.0,103070.0,0.34]
[1746742747580,0.25873658,103080.0,103070.0,0.34]
[1746742747793,0.36347452,103080.0,103070.0,0.34607233]
[1746742748021,0.36347395,103080.0,103070.0,0.54981726]
[1746742748249,0.04938143,103080.0,103070.0,0.80340223]
[1746742748467,0.05908188,103080.0,103070.0,0.80340223]
[1746742748711,0.05138143,103080.0,103070.0,0.80340223]
[1746742748940,0.0065501,103080.0,103070.0,0.81890223]
[1746742749172,0.02595099,103080.0,103070.0,0.83390223]
[1746742749375,0.03565172,103080.0,103070.0,0.83390223]
[1746742749594,0.22967643,103080.0,103070.0,0.77429704]
[1746742749809,0.23937763,103080.0,103070.0,0.55951902]
[1746742750031,0.23937763,103080.0,103070.0,0.00607233]
[1746742750032,0.32064328,103080.0,103070.0,0.00607233]
[1746742750265,0.35164328,103080.0,103070.0,0.00607233]
[1746742750917,1.00787674,103080.0,103070.0,0.00607233]
[1746742751138,1.05787674,103080.0,103070.0,0.00607233]
[1746742751374,0.00970327,103050.0,103040.0,0.2215795]
[1746742751600,0.02911065,103050.0,103040.0,0.45576358]
[1746742751806,0.00059088,103050.0,103040.0,0.5712838]
[1746742752013,0.2140788,103050.0,103040.0,0.34807233]
[1746742752226,0.5695255,103050.0,103040.0,0.00807233]
[1746742752464,0.8959053,103050.0,103040.0,0.00807233]
[1746742752698,0.67142552,103050.0,103040.0,0.05379907]
[1746742752908,0.67142552,103050.0,103040.0,0.04772674]
[1746742753157,0.67126139,103050.0,103040.0,0.04772674]
[1746742753494,0.59690222,103050.0,103040.0,0.04772674]
[1746742753703,0.811382,103050.0,103040.0,0.04772674]
[1746742753914,0.816382,103050.0,103040.0,0.04772674]
[1746742754144,0.814382,103050.0,103040.0,0.04772674]
[1746742754353,0.95538914,103050.0,103040.0,0.04772674]
[1746742754952,0.9589503,103050.0,103040.0,0.04772674]
[1746742755101,1.3989503,103050.0,103040.0,0.04772674]
[1746742755319,0.22807021,103030.0,103020.0,0.002]
[1746742755531,0.61321691,103030.0,103020.0,0.002]
[1746742755733,1.10703165,103030.0,103020.0,0.002]
[1746742755930,1.11097451,103030.0,103020.0,0.002]
[1746742756187,0.28811167,103010.0,103000.0,0.002]
[1746742756441,0.38877859,103010.0,103000.0,0.002]
[1746742756641,0.31423774,103010.0,103000.0,0.00214372]
[1746742757805,0.31823774,103010.0,103000.0,0.00214372]
[1746742758797,0.44884177,103010.0,103000.0,0.00214372]
[1746742759023,0.65403991,103010.0,103000.0,0.00214372]
[1746742759443,0.69417054,103010.0,103000.0,0.00214372]
[1746742759669,0.39160922,103010.0,103000.0,0.00214372]
[1746742760156,0.74417054,103010.0,103000.0,0.00214372]
[1746742760394,1.22483746,103010.0,103000.0,0.00183612]
[1746742762167,1.17483746,103010.0,103000.0,0.00183612]
[1746742762380,0.74185148,103010.0,103000.0,0.00183612]
[1746742762835,1.0444128,103010.0,103000.0,0.00183612]
[1746742763304,1.1320128,103010.0,103000.0,0.00183612]
[1746742763749,1.13163991,103010.0,103000.0,0.00183612]
[1746742765022,1.03403991,103010.0,103000.0,0.00183612]
[1746742765261,1.23198683,103010.0,103000.0,0.00183612]
[1746742765917,1.13131991,103010.0,103000.0,0.00183612]
[1746742766994,1.18131991,103010.0,103000.0,0.00183612]
[1746742767942,1.17931991,103010.0,103000.0,0.00183612]
[1746742768169,1.18331991,103010.0,103000.0,0.00183612]
[1746742769765,1.07931991,103010.0,103000.0,0.00183612]
[1746742769987,1.18298683,103010.0,103000.0,0.00183612]
[1746742770446,1.18166683,103010.0,103000.0,0.00183612]
[1746742770663,0.87510551,103010.0,103000.0,0.00183612]
[1746742770881,1.18166683,103010.0,103000.0,0.00183612]
[1746742771836,1.08570683,103010.0,103000.0,0.00183612]
[1746742772058,1.18158683,103010.0,103000.0,0.00183612]
[1746742772272,1.18858683,103010.0,103000.0,0.00283612]
[1746742773600,1.49114815,103010.0,103000.0,0.00283612]
[1746742774041,1.18858683,103010.0,103000.0,0.00283612]
[1746742774276,1.49114815,103010.0,103000.0,0.00283612]
[1746742777473,1.18858683,103010.0,103000.0,0.00283612]
[1746742777817,1.33453455,103010.0,103000.0,0.00283612]
[1746742778040,1.11028003,103010.0,103000.0,0.00283612]
[1746742778257,0.68947859,103010.0,103000.0,0.00283612]
[1746742778498,1.00885311,103010.0,103000.0,0.00283612]
[1746742778724,0.66703311,103010.0,103000.0,0.00283612]
[1746742778937,1.10211311,103010.0,103000.0,0.00283612]
[1746742779360,0.87785859,103010.0,103000.0,0.00283612]
[1746742779559,1.20278003,103010.0,103000.0,0.00283612]
[1746742782818,1.10770003,103010.0,103000.0,0.00283612]
[1746742783021,1.20178003,103010.0,103000.0,0.00283612]
[1746742783847,1.55154003,103010.0,103000.0,0.00283612]
[1746742784829,1.55824003,103010.0,103000.0,0.00283612]
[1746742785418,1.58509305,103010.0,103000.0,0.00283612]
[1746742785626,1.75934757,103010.0,103000.0,0.00283612]
[1746742786059,1.80934757,103010.0,103000.0,0.00283612]
[1746742786251,1.70934757,103010.0,103000.0,0.00283612]
[1746742786453,1.48509305,103010.0,103000.0,0.00283612]
[1746742786657,1.70934757,103010.0,103000.0,0.00283612]
[1746742787139,1.48509305,103010.0,103000.0,0.00283612]
[1746742787785,1.47839305,103010.0,103000.0,0.00283612]
[1746742787989,1.65078065,103010.0,103000.0,0.00283612]
[1746742788194,0.20394269,102970.0,102960.0,0.03206828]
[1746742788401,0.30460961,102970.0,102960.0,0.03206828]
[1746742788994,0.30460961,102970.0,102960.0,0.04723175]
[1746742789414,0.30460961,102970.0,102960.0,0.04823175]
[1746742790873,0.52886413,102970.0,102960.0,0.01916347]
[1746742791011,0.52886413,102970.0,102960.0,0.03476347]
[1746742791548,0.61638942,102970.0,102960.0,0.01916347]
[1746742791980,0.64093027,102970.0,102960.0,0.01916347]
[1746742793164,0.64093027,102970.0,102960.0,0.04926347]
[1746742793165,0.52886413,102970.0,102960.0,0.04926347]
[1746742793375,0.62054413,102970.0,102960.0,0.04926347]
[1746742793558,0.52886413,102970.0,102960.0,0.04926347]
[1746742794946,0.30460961,102970.0,102960.0,0.04926347]
[1746742796106,0.52886413,102970.0,102960.0,0.04926347]
[1746742796508,0.56782299,102970.0,102960.0,0.04926347]
[1746742796711,0.52886413,102970.0,102960.0,0.04926347]
[1746742798357,0.6382663,102970.0,102960.0,0.01916347]
[1746742798791,0.65280715,102970.0,102960.0,0.01916347]
[1746742798972,0.66280715,102970.0,102960.0,0.01007349]
[1746742799178,0.66280715,102970.0,102960.0,0.004]
[1746742799382,1.35560715,102970.0,102960.0,0.004]
[1746742800381,1.79560715,102970.0,102960.0,0.004]
[1746742800589,1.80140715,102970.0,102960.0,0.004]
[1746742800996,1.56135263,102970.0,102960.0,0.004]
[1746742801189,1.82444043,102970.0,102960.0,0.004]
[1746742801537,1.60018591,102970.0,102960.0,0.001]
[1746742802565,1.60018591,102970.0,102940.0,0.07240682]
[1746742802566,0.2136953,102950.0,102940.0,0.07240682]
[1746742802802,0.31436222,102950.0,102940.0,0.07255054]
[1746742803009,0.31436222,102950.0,102940.0,0.07862523]
[1746742803974,0.31436222,102950.0,102940.0,0.08662523]
[1746742804313,0.31436222,102950.0,102940.0,0.31087975]
[1746742804799,0.31436222,102950.0,102940.0,0.35466412]
[1746742805266,0.28398269,102950.0,102940.0,0.36375105]
[1746742805498,0.31436222,102950.0,102940.0,0.91746748]
[1746742805750,0.31436269,102950.0,102940.0,0.70375105]
[1746742805997,0.31436269,102950.0,102940.0,0.13949653]
[1746742806234,0.31436269,102950.0,102940.0,0.36375105]
[1746742806947,0.31436269,102950.0,102940.0,0.56775337]
[1746742807185,0.30464943,102950.0,102940.0,0.36375105]
[1746742807630,0.11038009,102950.0,102940.0,0.35321296]
[1746742807858,0.33378874,102950.0,102940.0,0.59689541]
[1746742808087,0.02913931,102950.0,102940.0,0.60660858]
[1746742808338,0.01942605,102950.0,102940.0,0.60660858]
[1746742808605,0.02913931,102950.0,102940.0,0.60660858]
[1746742808838,0.02913931,102950.0,102940.0,0.95342213]
[1746742809504,0.03885266,102950.0,102940.0,0.95342213]
[1746742809720,0.23312229,102950.0,102940.0,0.70002651]
[1746742809931,0.31436278,102950.0,102940.0,0.7105646]
[1746742810560,0.31436278,102950.0,102940.0,0.92428103]
[1746742810775,0.31436278,102950.0,102940.0,0.93399495]
[1746742810989,0.01942586,102950.0,102940.0,0.94370868]
[1746742811414,0.02913912,102950.0,102940.0,0.94370868]
[1746742811628,0.01942586,102950.0,102940.0,0.94370868]
[1746742812051,0.02913903,102950.0,102940.0,0.94370868]
[1746742812270,0.23312135,102950.0,102940.0,0.92428103]
[1746742812485,0.22340856,102950.0,102940.0,0.92428103]
[1746742812702,0.21369549,102950.0,102940.0,0.92428103]
[1746742812942,0.30464924,102950.0,102940.0,0.70147767]
[1746742813435,0.30464924,102950.0,102940.0,0.13722315]
[1746742813655,0.30464924,102950.0,102940.0,0.09080278]
[1746742813899,0.35454083,102950.0,102940.0,0.06000278]
[1746742814352,0.30464924,102950.0,102940.0,0.07590278]
[1746742814567,0.30464924,102950.0,102940.0,0.09220278]
[1746742815009,0.30464924,102950.0,102940.0,0.08612809]
[1746742816534,0.30464924,102950.0,102940.0,0.09220267]
[1746742816744,0.30464924,102950.0,102940.0,0.08612809]
[1746742817211,0.30464924,102950.0,102940.0,0.05392809]
[1746742817439,0.58053285,102950.0,102940.0,0.05392809]
[1746742817652,0.58053285,102950.0,102940.0,0.01014372]
[1746742817653,0.9652737,102950.0,102940.0,0.01014372]
[1746742817850,0.9652737,102950.0,102920.0,0.002]
[1746742817851,0.59347767,102930.0,102920.0,0.002]
[1746742818072,1.41524246,102930.0,102920.0,0.002]
[1746742818278,1.63573363,102930.0,102920.0,0.002]
[1746742818499,1.39647911,102930.0,102920.0,0.002]
[1746742818704,1.38127911,102930.0,102920.0,0.002]
[1746742818904,1.43954301,102930.0,102920.0,0.002]
[1746742819313,1.44354301,102930.0,102920.0,0.002]
[1746742819523,1.19232459,102930.0,102920.0,0.002]
[1746742819674,1.17732459,102930.0,102920.0,0.002]
[1746742819887,1.50224603,102930.0,102920.0,0.002]
[1746742820113,1.40357911,102930.0,102920.0,0.002]
[1746742820697,1.35357911,102930.0,102920.0,0.002]
[1746742820949,1.40357911,102930.0,102920.0,0.002]
[1746742821797,1.43777769,102930.0,102920.0,0.002]
[1746742823184,1.72703221,102930.0,102920.0,0.002]
[1746742823398,1.77769913,102930.0,102920.0,0.002]
[1746742823638,1.52214461,102930.0,102920.0,0.002]
[1746742824261,1.05444232,102930.0,102920.0,0.002]
[1746742824484,1.14188232,102930.0,102920.0,0.002]
[1746742824716,0.75764374,102930.0,102920.0,0.0346]
[1746742824937,0.67024374,102930.0,102920.0,0.0346]
[1746742828465,0.67024374,102930.0,102920.0,0.06803276]
[1746742828917,0.02542935,102930.0,102920.0,0.85576067]
[1746742829161,0.006,102930.0,102920.0,0.85576067]
[1746742829403,0.0195195,102950.0,102940.0,0.23560213]
[1746742829640,0.13961133,102950.0,102940.0,0.80957076]
[1746742829883,0.33388124,102950.0,102940.0,0.79985665]
[1746742830075,0.13961218,102950.0,102940.0,0.82536146]
[1746742830297,0.33388124,102950.0,102940.0,0.82536146]
[1746742830510,0.32416855,102950.0,102940.0,0.81564763]
[1746742830964,0.32416855,102950.0,102940.0,0.82536164]
[1746742831459,0.30474231,102950.0,102940.0,0.03767687]
[1746742831723,0.32846023,102950.0,102940.0,0.00707687]
[1746742831948,1.03126023,102950.0,102940.0,0.00707687]
[1746742832168,1.03126023,102950.0,102940.0,0.04027687]
[1746742832169,1.00671938,102950.0,102940.0,0.04027687]
[1746742832399,1.00671938,102950.0,102940.0,0.003]
[1746742832625,1.00671938,102950.0,102940.0,0.0342]
[1746742832846,1.00671938,102950.0,102940.0,0.0322]
[1746742833063,1.00971938,102950.0,102940.0,0.0322]
[1746742833302,0.31691938,102950.0,102940.0,0.0322]
[1746742833772,0.31691938,102950.0,102940.0,0.0312]
[1746742833991,0.31891938,102950.0,102940.0,0.0312]
[1746742835868,0.31891938,102950.0,102940.0,0.03115412]
[1746742836294,0.21373682,102930.0,102920.0,0.05297307]
[1746742836498,0.31473785,102930.0,102920.0,0.04797307]
[1746742837559,0.31473785,102930.0,102920.0,0.04897307]
[1746742838379,0.31473785,102930.0,102920.0,0.05097307]
[1746742839005,0.31473785,102930.0,102920.0,0.06727307]
[1746742840427,0.36564206,102930.0,102920.0,0.0357]
[1746742840637,0.31473785,102930.0,102920.0,0.003]
[1746742841247,0.31473785,102930.0,102920.0,0.0192]
[1746742841661,0.31473785,102930.0,102920.0,0.0674986]
[1746742841870,0.31473785,102930.0,102920.0,0.0654986]
[1746742842073,0.31773785,102930.0,102920.0,0.0313]
[1746742842268,0.32073785,102930.0,102920.0,0.0313]
[1746742842501,0.32954474,102930.0,102920.0,0.0313]
[1746742842712,0.21377835,102910.0,102900.0,0.56625452]
[1746742842910,0.31475479,102910.0,102900.0,0.56625452]
[1746742843254,0.3235558,102910.0,102900.0,0.59755452]
[1746742843898,0.3235558,102910.0,102900.0,0.59955452]
[1746742844101,0.3235558,102910.0,102900.0,0.60103378]
[1746742845079,0.3235558,102910.0,102900.0,0.63396788]
[1746742845995,0.3235558,102910.0,102900.0,0.40971336]
[1746742846730,0.3235558,102910.0,102900.0,0.00547926]
[1746742847159,0.62191774,102910.0,102900.0,0.00547926]
[1746742848010,0.62191774,102910.0,102900.0,0.00447926]
[1746742848136,0.64745859,102910.0,102900.0,0.00247926]
[1746742848540,0.64845859,102910.0,102900.0,0.00247926]
[1746742849231,0.32530104,102910.0,102900.0,0.00247926]
[1746742854218,0.54955556,102910.0,102900.0,0.00247926]
[1746742855336,0.94766511,102910.0,102900.0,0.00247926]
[1746742855548,0.91409641,102910.0,102900.0,0.00247926]
[1746742859442,0.2138612,102870.0,102860.0,0.74338497]
[1746742859652,0.04860322,102870.0,102860.0,0.51927426]
[1746742859845,0.03802883,102870.0,102860.0,0.75325007]
[1746742860390,0.01858767,102870.0,102860.0,0.75325007]
[1746742860591,0.03802845,102870.0,102860.0,0.75325007]
[1746742860792,0.04774926,102870.0,102860.0,0.75325007]
[1746742860998,0.2518904,102870.0,102860.0,0.73988569]
[1746742861358,0.23245,102870.0,102860.0,0.54141169]
[1746742861577,0.23245,102870.0,102860.0,0.5850338]
[1746742861804,0.23345,102870.0,102860.0,0.82093132]
[1746742861949,0.33411692,102870.0,102860.0,0.28235754]
[1746742862177,0.31467558,102870.0,102860.0,0.05810302]
[1746742862374,0.31467558,102870.0,102860.0,0.08134435]
[1746742862615,0.2842795,102870.0,102860.0,0.31532082]
[1746742862818,0.29156121,102870.0,102860.0,0.50975986]
[1746742863029,0.29056121,102870.0,102860.0,0.50448162]
[1746742863229,0.29056121,102870.0,102860.0,0.51048162]
[1746742863441,0.29056121,102870.0,102860.0,0.29659887]
[1746742863611,0.29056121,102870.0,102860.0,0.07734435]
[1746742864063,0.29056121,102870.0,102860.0,0.51548142]
[1746742864274,0.29056121,102870.0,102860.0,0.50575976]
[1746742864492,0.29056121,102870.0,102860.0,0.51548133]
[1746742864717,0.29056121,102870.0,102860.0,0.30094866]
[1746742865142,0.29056121,102870.0,102860.0,0.291227]
[1746742865389,0.29056121,102870.0,102860.0,0.3024394]
[1746742866050,0.29056121,102870.0,102860.0,0.27327441]
[1746742866254,0.29056121,102870.0,102860.0,0.28299617]
[1746742866523,0.29056121,102870.0,102860.0,0.07551591]
[1746742866757,0.29056121,102870.0,102860.0,0.08523767]
[1746742867425,0.29056121,102870.0,102860.0,0.09495952]
[1746742867648,0.29056121,102870.0,102860.0,0.08523776]
[1746742867899,0.02916367,102860.0,102850.0,0.77815693]
[1746742868135,0.32444407,102860.0,102850.0,0.76843507]
[1746742868355,0.33416658,102860.0,102850.0,0.80662032]
[1746742868578,0.13972754,102860.0,102850.0,0.81634283]
[1746742868786,0.13972744,102860.0,102850.0,0.83578758]
[1746742869044,0.31767071,102860.0,102850.0,0.37446264]
[1746742869283,0.31672391,102860.0,102850.0,0.03946264]
[1746742869696,0.31666524,102860.0,102850.0,0.03946264]
[1746742870134,0.32373347,102860.0,102850.0,0.03446264]
[1746742870354,0.32373347,102860.0,102850.0,0.03646264]
[1746742870603,0.32373347,102860.0,102850.0,0.03446264]
[1746742871047,0.32273347,102860.0,102850.0,0.02846264]
[1746742871271,0.20418083,102850.0,102840.0,0.28942365]
[1746742871476,0.30484775,102850.0,102840.0,0.2313292]
[1746742871688,0.12714478,102850.0,102840.0,0.4839006]
[1746742871903,0.1369983,102850.0,102840.0,0.7701255]
[1746742872112,0.14672091,102850.0,102840.0,0.7701255]
[1746742872519,0.14672091,102850.0,102840.0,0.7731255]
[1746742872729,0.1369983,102850.0,102840.0,0.7731255]
[1746742873607,0.12727588,102850.0,102840.0,0.7731255]
[1746742874022,0.11755374,102850.0,102840.0,0.7731255]
[1746742874272,0.12827588,102850.0,102840.0,0.7781255]
[1746742874792,0.11855374,102850.0,102840.0,1.1181255]
[1746742875116,0.11855374,102850.0,102840.0,1.12719839]
[1746742875743,0.11855374,102850.0,102840.0,1.15666449]
[1746742875954,0.1088317,102850.0,102840.0,1.15666449]
[1746742877008,0.00816478,102850.0,102840.0,1.15666449]
[1746742877211,0.001,102860.0,102850.0,0.22362548]
[1746742877576,0.001,102860.0,102850.0,1.04313452]
[1746742878017,0.002,102890.0,102880.0,0.22356028]
[1746742878235,0.00014341,102890.0,102880.0,1.00234898]
[1746742878469,0.21577835,102910.0,102900.0,0.20408152]
[1746742878673,0.11238339,102910.0,102900.0,0.67202586]
[1746742878893,0.10266692,102910.0,102900.0,1.04322586]
[1746742879132,0.00289618,102910.0,102900.0,1.04930203]
[1746742879371,0.31734089,102910.0,102900.0,0.82578521]
[1746742879567,0.31734145,102910.0,102900.0,0.57033069]
[1746742879767,0.01261265,102910.0,102900.0,1.07800437]
[1746742879975,0.01261255,102910.0,102900.0,1.07800437]
[1746742880181,0.01261255,102910.0,102900.0,1.08707025]
[1746742880363,0.23610728,102910.0,102900.0,0.38384439]
[1746742880693,0.31734164,102910.0,102900.0,0.83235343]
[1746742881105,0.0223294,102910.0,102900.0,1.09748842]
[1746742881313,0.05247965,102910.0,102900.0,1.09748842]
[1746742881524,0.03304577,102910.0,102900.0,1.09748842]
[1746742881769,0.00389618,102910.0,102900.0,0.8732339]
[1746742882291,0.0233294,102910.0,102900.0,0.8732339]
[1746742882494,0.00389618,102910.0,102900.0,0.8732339]
[1746742882910,0.03304643,102910.0,102900.0,0.86351639]
[1746742883121,0.21767453,102910.0,102900.0,0.42546256]
[1746742883342,0.21767453,102910.0,102900.0,0.63926206]
[1746742883559,0.18728718,102910.0,102900.0,0.63926206]
[1746742883763,0.18798769,102910.0,102900.0,0.62954408]
[1746742883974,0.18798769,102910.0,102900.0,0.38449668]
[1746742884473,0.29060141,102910.0,102900.0,0.37477851]
[1746742884681,0.28865461,102910.0,102900.0,0.37477851]
[1746742885066,0.29461033,102910.0,102900.0,0.41840777]
[1746742885280,0.29461033,102910.0,102900.0,0.07840777]
[1746742885506,0.25554575,102910.0,102900.0,0.0723316]
[1746742886836,0.25554575,102910.0,102900.0,0.02870234]